fUSD/lending_fUSD_20251017
["ID","MTS","AMOUNT","RATE_DAILY","PERIOD"]
[391641075,1760713852888,-500.0,0.00025479,2]
[391641076,1760713852898,-2.76283617,0.00025479,2]
[391641077,1760713852911,-306.372,0.00025479,2]
[391641078,1760713852923,-190.86516383,0.00025479,2]
[391641079,1760713852933,-500.0,0.00025479,2]
[391641080,1760713852942,-500.0,0.00025479,2]
[391641081,1760713852952,-500.0,0.00025479,2]
[391641082,1760713852962,-366.63483617,0.00025479,2]
[391641083,1760713852976,-1704.29516383,0.00025479,2]
[391641084,1760713852986,-491.50157863,0.00025479,2]
[391641085,1760713852996,-704.65,0.00025479,2]
[391641086,1760713853006,-500.0,0.00025479,2]
[391641087,1760713853016,-500.0,0.00025479,2]
[391641088,1760713853026,-828.02,0.00025479,2]
[391641089,1760713853037,-500.0,0.00025479,2]
[391641090,1760713853047,-500.0,0.00025479,2]
[391641091,1760713853058,-500.0,0.00025479,2]
[391641092,1760713853068,-950.94,0.00025479,2]
[391641093,1760713853077,-394.31,0.00025479,2]
[391641094,1760713853087,-500.0,0.00025479,2]
[391641095,1760713853096,-500.0,0.00025479,2]
[391641096,1760713853110,-500.0,0.00025479,2]
[391641097,1760713853118,-1000.0,0.00025479,2]
[391641098,1760713853127,-500.0,0.00025479,2]
[391641099,1760713853137,-693.54,0.00025479,2]
[391641100,1760713853147,-1382.69,0.00025479,2]
[391641101,1760713853156,-500.0,0.00025479,2]
[391641102,1760713853167,-500.0,0.00025479,2]
[391641103,1760713853177,-500.0,0.00025479,2]
[391641104,1760713853186,-500.0,0.00025479,2]
[391641105,1760713853196,-500.0,0.00025479,2]
[391641106,1760713853205,-500.0,0.00025479,2]
[391641107,1760713853215,-500.0,0.00025479,2]
[391641108,1760713853225,-500.0,0.00025479,2]
[391641109,1760713853235,-500.0,0.00025479,2]
[391641110,1760713853245,-1458.0,0.00025479,2]
[391641111,1760713853254,-500.0,0.00025479,2]
[391641112,1760713853263,-500.0,0.00025742,2]
[391641113,1760713853272,-1918.90001518,0.00025743,3]
[391641114,1760713853285,-1032.96588558,0.00025743,3]
[391641115,1760713853300,-450.85402016,0.00025743,3]
[391641116,1760713853311,-839.9099692,0.00025743,3]
[391641117,1760713853322,-996.92408764,0.00025743,3]
[391641126,1760714448007,-390.24,0.00013699,2]
[391641127,1760714448031,-109.76416402,0.00013846,2]
[391641129,1760714592823,876.23,0.00010878,2]
[391641130,1760714593047,876.23,0.00011451,2]
[391641131,1760714593382,876.23,0.00012023,2]
[391641132,1760714593584,876.23,0.00012596,2]
[391641133,1760714593826,876.23,0.00013168,2]
[391641143,1760714917149,265.35722347,0.000107,2]
[391641165,1760715031589,-261.52,0.00013741,2]
[391641166,1760715031601,-614.71,0.00013741,2]
[391641167,1760715031611,-500.0,0.00013747,3]
[391641168,1760715031621,-300.0,0.00013753,2]
[391641169,1760715031631,-773.0,0.00013753,2]
[391641170,1760715031640,-500.0,0.00013771,3]
[391641171,1760715031650,-500.0,0.00013771,3]
[391641172,1760715031660,-500.0,0.00013771,3]
[391641173,1760715031670,-876.23,0.00014313,2]
[391641174,1760715031680,-250.0,0.00014643,2]
[391641175,1760715031690,-496.56,0.00014794,2]
[391641176,1760715031702,-660.1,0.00014794,2]
[391641177,1760715031832,-7133.67,0.00014794,2]
[391641180,1760715031842,-876.23,0.00014886,2]
[391641181,1760715031852,-1000.0,0.000149,2]
[391641184,1760715031862,-1000.0,0.000149,2]
[391641185,1760715031872,-663.524,0.000149,2]
[391641187,1760715031882,-202.65613155,0.000149,2]
[391641189,1760715031892,-166.84519916,0.000149,2]
[391641192,1760715031902,-150.0,0.00014998,2]
[391641194,1760715031912,-500.0,0.00014999,2]
[391641195,1760715031922,-500.0,0.00014999,2]
[391641197,1760715031931,-500.0,0.00014999,2]
[391641199,1760715031941,-500.0,0.00014999,2]
[391641201,1760715031951,-419.88605035,0.00014999,2]
[391641203,1760715031960,-500.0,0.00014999,2]
[391641205,1760715031971,-500.0,0.00014999,2]
[391641207,1760715031981,-500.0,0.00014999,2]
[391641208,1760715031991,-500.0,0.00014999,2]
[391641210,1760715032001,-500.0,0.00014999,2]
[391641211,1760715032011,-500.0,0.00014999,2]
[391641212,1760715032021,-500.0,0.00014999,2]
[391641213,1760715032031,-500.0,0.00014999,2]
[391641215,1760715032041,-6244.77974386,0.00015,2]
[391641216,1760715032052,-117910.0594425,0.00015,2]
[391641260,1760715039500,-1884.241934,0.00015,2]
[391641261,1760715039558,-271.42282622,0.00015,2]
[391641262,1760715039573,-22252.0,0.00015,2]
[391641263,1760715039731,-3576.3084305,0.00015,2]
[391641267,1760715039984,-7076.16329778,0.00015,2]
[391641268,1760715039995,-556.8259996,0.00015,2]
[391641277,1760715042793,-6213.80811183,0.00015,2]
[391641287,1760715045544,-200039.9999994,0.00015,2]
[391641288,1760715045556,-2256.3,0.00015,2]
[391641289,1760715045567,-1226.65,0.00015,2]
[391641290,1760715045582,-611.35178844,0.00015,2]
[391641291,1760715045609,-12615.47591674,0.00015,2]
[391641292,1760715045641,-2220.75148885,0.00015,2]
[391641293,1760715045780,-730.89110532,0.00015,2]
[391641322,1760715123510,668.51,0.00025972,120]
[391641327,1760715550879,-1078.22,0.00014552,2]
[391641328,1760715550902,-2500.0,0.00014554,2]
[391641329,1760715550924,-164.92630483,0.00014556,2]
[391641330,1760715550946,-195.0,0.0001456,2]
[391641331,1760715550968,-300.0,0.0001456,2]
[391641332,1760715550990,-300.0,0.00014563,2]
[391641333,1760715551013,-2500.0,0.00014564,2]
[391641334,1760715551036,-2500.0,0.00014564,2]
[391641335,1760715551059,-461.85369517,0.00014568,3]
[391641343,1760716026499,-250.0,0.00014286,7]
[391641344,1760716026521,-273.54620409,0.00014299,2]
[391641345,1760716026542,-300.0,0.00014312,2]
[391641346,1760716026566,-500.0,0.00014338,3]
[391641347,1760716026587,-500.0,0.00014467,3]
[391641348,1760716026609,-500.0,0.00014467,3]
[391641349,1760716026629,-856.93824271,0.00014595,2]
[391641350,1760716026658,-1200.0,0.00014614,2]
[391641351,1760716026678,-619.5155532,0.00014615,2]
[391641364,1760716231743,-2006.75230325,0.00014615,2]
[391641365,1760716231755,-678.09271386,0.00014615,2]
[391641366,1760716231766,-1.73942969,0.00014615,2]
[391641367,1760716231776,-300.0,0.00014628,2]
[391641368,1760716231785,-221.77047353,0.00014641,3]
[391641379,1760716232144,-278.22952647,0.00014641,3]
[391641380,1760716232154,-890.08130565,0.00014647,2]
[391641381,1760716232164,-555.53,0.00014667,2]
[391641382,1760716232174,-500.0,0.00014737,3]
[391641383,1760716232183,-500.0,0.00014737,3]
[391641384,1760716232194,-300.0,0.00014823,2]
[391641385,1760716232203,-300.0,0.00014823,2]
[391641386,1760716232213,-480.0,0.00014823,2]
[391641387,1760716232223,-732.04488069,0.00014824,2]
[391641388,1760716232234,-716.03838195,0.00014824,2]
[391641389,1760716232245,-5788.74240128,0.00014824,2]
[391641390,1760716232257,-2482.76733608,0.00014824,2]
[391641391,1760716232267,-562.74,0.00014824,2]
[391641392,1760716232276,-150.0,0.00014824,2]
[391641393,1760716232286,-28384.35,0.00014825,2]
[391641394,1760716232296,-229.75081,0.0001485,2]
[391641395,1760716232307,-13826.86936251,0.00014881,2]
[391641396,1760716232316,-233.88219817,0.0001489,2]
[391641397,1760716232326,-159.18325228,0.00014899,2]
[391641398,1760716232336,-269.07195767,0.000149,2]
[391641399,1760716232345,-500.0,0.000149,2]
[391641400,1760716232355,-500.0,0.000149,2]
[391641401,1760716232364,-500.0,0.000149,2]
[391641402,1760716232374,-500.0,0.000149,2]
[391641403,1760716232384,-500.0,0.000149,2]
[391641404,1760716232393,-500.0,0.000149,2]
[391641405,1760716232403,-500.0,0.000149,2]
[391641406,1760716232412,-500.0,0.000149,2]
[391641407,1760716232422,-500.0,0.000149,2]
[391641408,1760716232431,-500.0,0.000149,2]
[391641409,1760716232440,-178.61645939,0.000149,2]
[391641410,1760716232450,-185.93291415,0.000149,2]
[391641411,1760716232459,-500.0,0.00014973,2]
[391641412,1760716232468,-500.0,0.00014973,2]
[391641413,1760716232478,-500.0,0.00014973,2]
[391641414,1760716232487,-500.0,0.00014973,2]
[391641415,1760716232496,-500.0,0.00014973,2]
[391641416,1760716232506,-500.0,0.00014973,2]
[391641417,1760716232516,-500.0,0.00014973,2]
[391641418,1760716232526,-500.0,0.00014973,2]
[391641419,1760716232535,-500.0,0.00014973,2]
[391641420,1760716232545,-13188.2799954,0.00014981,2]
[391641421,1760716232555,-29449.8719459,0.00014981,2]
[391641422,1760716232565,-5602.338488,0.00014981,2]
[391641423,1760716232574,-163333.4660868,0.00014981,2]
[391641424,1760716232585,-4256.389092,0.00014981,2]
[391641425,1760716232594,-2215.4142096,0.00014981,2]
[391641426,1760716232604,-133460.12249761,0.00014983,2]
[391641427,1760716232613,-2349.6379824,0.00014983,2]
[391641428,1760716232623,-3126.1581747,0.00014983,2]
[391641429,1760716232636,-60054.75255754,0.00014983,2]
[391641430,1760716232652,-3422.4,0.00014983,2]
[391641431,1760716232663,-2524.49111144,0.00014983,2]
[391641440,1760716237623,-1140.5,0.00014883,2]
[391641441,1760716237639,-592.33379843,0.00014883,2]
[391641442,1760716237650,-1445.58767714,0.00014883,2]
[391641444,1760716237931,-3637.76689274,0.00014883,2]
[391641445,1760716237942,-45798.57004892,0.00014983,2]
[391641446,1760716237951,-24889.9144013,0.00014983,2]
[391641447,1760716237962,-175.91949468,0.0001499,2]
[391641448,1760716237971,-151.0,0.00014991,2]
[391641449,1760716237980,-151.0,0.00014991,2]
[391641450,1760716237990,-151.0,0.00014991,2]
[391641451,1760716238000,-151.0,0.00014991,2]
[391641452,1760716238009,-151.0,0.00014991,2]
[391641453,1760716238019,-151.0,0.00014991,2]
[391641454,1760716238028,-208.4268758,0.00014991,2]
[391641455,1760716238038,-200.0,0.00014991,2]
[391641456,1760716238048,-151.0,0.00014997,2]
[391641457,1760716238062,-151.0,0.00014997,2]
[391641458,1760716238071,-151.0,0.00014997,2]
[391641459,1760716238081,-500.0,0.00014999,2]
[391641460,1760716238091,-500.0,0.00014999,2]
[391641461,1760716238102,-500.0,0.00014999,2]
[391641462,1760716238112,-500.0,0.00014999,2]
[391641463,1760716238121,-500.0,0.00014999,2]
[391641464,1760716238131,-500.0,0.00014999,2]
[391641465,1760716238140,-500.0,0.00014999,2]
[391641466,1760716238151,-500.0,0.00014999,2]
[391641467,1760716238161,-500.0,0.00014999,2]
[391641468,1760716238171,-500.0,0.00014999,2]
[391641470,1760716238181,-500.0,0.00014999,2]
[391641472,1760716238191,-500.0,0.00014999,2]
[391641474,1760716238200,-500.0,0.00014999,2]
[391641475,1760716238210,-500.0,0.00014999,2]
[391641476,1760716238220,-1189098.80355411,0.00015,2]
[391641477,1760716238230,-160.0,0.00015,2]
[391641478,1760716238239,-45625.54820352,0.0001502,2]
[391641479,1760716238250,-4184.05,0.0001507,2]
[391641480,1760716238259,-876.23,0.00015458,2]
[391641481,1760716238269,-500.0,0.00015521,2]
[391641482,1760716238278,-1040.87145955,0.00015521,2]
[391641483,1760716238288,-500.0,0.00015521,2]
[391641484,1760716238298,-500.0,0.00015521,2]
[391641485,1760716238309,-500.0,0.00015521,2]
[391641486,1760716238319,-300.0,0.00015715,2]
[391641487,1760716238329,-500.0,0.00015715,3]
[391641488,1760716238340,-250.0,0.00015715,2]
[391641489,1760716238351,-2500.0,0.00015715,2]
[391641490,1760716238360,-300.0,0.00015715,2]
[391641491,1760716238371,-229.75082,0.0001585,2]
[391641492,1760716238380,-255.0,0.0001595,2]
[391641493,1760716238390,-13826.86936243,0.00016017,2]
[391641494,1760716238399,-876.23,0.00016031,2]
[391641495,1760716238409,-500.0,0.00016077,3]
[391641496,1760716238419,-300.0,0.00016077,2]
[391641497,1760716238428,-300.0,0.00016077,2]
[391641498,1760716238438,-250.0,0.00016077,2]
[391641499,1760716238448,-300.0,0.00016077,2]
[391641500,1760716238457,-1774.28500881,0.00016077,2]
[391641501,1760716238467,-240.0,0.00016226,2]
[391641502,1760716238477,-223.0,0.00016226,2]
[391641503,1760716238487,-496.57,0.00016438,30]
[391641504,1760716238496,-3540.07,0.00016453,2]
[391641505,1760716238506,-876.23,0.00016603,2]
[391641506,1760716238516,-150.0,0.00016645,2]
[391641507,1760716238526,-166.66,0.00016745,2]
[391641508,1760716238535,-229.75082,0.0001685,2]
[391641509,1760716238545,-1250.050684,0.00016895,2]
[391641510,1760716238555,-2942.7030274,0.00016919,2]
[391641511,1760716238564,-6571.1546436,0.00016919,2]
[391641512,1760716238574,-36444.6224455,0.00016919,2]
[391641513,1760716238583,-949.7287797,0.00016919,2]
[391641514,1760716238592,-24945.9995915,0.00016922,2]
[391641515,1760716238602,-5553.6905864,0.00016922,2]
[391641516,1760716238611,-151.0,0.0001715,2]
[391641517,1760716238621,-13826.86936243,0.00017153,2]
[391641518,1760716238633,-233.88219816,0.00017164,2]
[391641519,1760716238642,-433.0,0.00017166,2]
[391641520,1760716238651,-876.23,0.00017176,2]
[391641521,1760716238662,-278.9240093,0.00017323,2]
[391641522,1760716238672,-656.6057977,0.00017352,2]
[391641523,1760716238682,-1466.2227879,0.00017352,2]
[391641524,1760716238692,-8131.8944428,0.00017352,2]
[391641525,1760716238702,-211.9131347,0.00017352,2]
[391641526,1760716238713,-5566.2048839,0.00017354,2]
[391641527,1760716238723,-1239.1958699,0.00017354,2]
[391641528,1760716238732,-269.07195766,0.00017575,2]
[391641529,1760716238742,-876.23,0.00017748,2]
[391641530,1760716238751,-229.75082,0.0001785,2]
[391641531,1760716238760,-166.66,0.00018127,2]
[391641532,1760716238770,-13826.86936243,0.00018289,2]
[391641533,1760716238779,-876.23,0.00018321,2]
[391641534,1760716238789,-697.0,0.0001847,2]
[391641535,1760716238799,-229.75081,0.0001885,2]
[391641536,1760716238811,-668.51,0.00018889,2]
[391641537,1760716238825,-1836.796906,0.00018893,2]
[391641538,1760716238835,-151.107744,0.00018893,2]
[391641539,1760716238844,-2227.955231,0.00018893,2]
[391641540,1760716238853,-876.23,0.00018893,2]
[391641541,1760716238863,-169.0,0.00018904,2]
[391641542,1760716238873,-169.0,0.00018904,2]
[391641543,1760716238883,-169.0,0.00018904,2]
[391641544,1760716238892,-169.0,0.00018904,2]
[391641545,1760716238902,-153.0,0.00018904,2]
[391641546,1760716238911,-153.0,0.00018904,2]
[391641547,1760716238921,-153.0,0.00018904,2]
[391641548,1760716238931,-153.0,0.00018904,2]
[391641549,1760716238941,-153.0,0.00018904,2]
[391641550,1760716238950,-153.0,0.00018904,2]
[391641551,1760716238959,-153.0,0.00018904,2]
[391641552,1760716238970,-153.0,0.00018904,2]
[391641553,1760716238980,-153.0,0.00018904,2]
[391641554,1760716238989,-153.0,0.00018904,2]
[391641555,1760716238999,-153.0,0.00018904,2]
[391641556,1760716239008,-153.0,0.00018904,2]
[391641557,1760716239018,-153.0,0.00018904,2]
[391641558,1760716239027,-153.0,0.00018904,2]
[391641559,1760716239037,-153.0,0.00018904,2]
[391641560,1760716239046,-153.0,0.00018904,2]
[391641561,1760716239059,-153.0,0.00018904,2]
[391641562,1760716239070,-153.0,0.00018904,2]
[391641563,1760716239080,-153.0,0.00018904,2]
[391641564,1760716239091,-153.0,0.00018904,2]
[391641565,1760716239102,-153.0,0.00018904,2]
[391641566,1760716239111,-153.0,0.00018904,2]
[391641567,1760716239120,-153.0,0.00018904,2]
[391641568,1760716239130,-153.0,0.00018904,2]
[391641569,1760716239139,-153.0,0.00018904,2]
[391641570,1760716239149,-153.0,0.00018904,2]
[391641571,1760716239159,-153.0,0.00018904,2]
[391641572,1760716239170,-153.0,0.00018904,2]
[391641573,1760716239180,-153.0,0.00018904,2]
[391641574,1760716239190,-153.0,0.00018904,2]
[391641575,1760716239201,-153.0,0.00018904,2]
[391641576,1760716239211,-153.0,0.00018904,2]
[391641577,1760716239221,-153.0,0.00018904,2]
[391641578,1760716239231,-153.0,0.00018904,2]
[391641579,1760716239241,-153.0,0.00018904,2]
[391641580,1760716239251,-153.0,0.00018904,2]
[391641581,1760716239261,-153.0,0.00018904,2]
[391641582,1760716239271,-153.0,0.00018904,2]
[391641583,1760716239282,-153.0,0.00018904,2]
[391641584,1760716239291,-153.0,0.00018904,2]
[391641585,1760716239302,-153.0,0.00018904,2]
[391641586,1760716239312,-153.0,0.00018904,2]
[391641587,1760716239322,-153.0,0.00018904,2]
[391641588,1760716239331,-153.0,0.00018904,2]
[391641589,1760716239341,-58528.98085595,0.00019,2]
[391641590,1760716239350,-200.0,0.00019178,2]
[391641591,1760716239360,-6514.0,0.000193,2]
[391641592,1760716239370,-13826.86936243,0.00019425,2]
[391641593,1760716239380,-233.88219816,0.00019439,2]
[391641594,1760716239390,-876.23,0.00019466,2]
[391641595,1760716239400,-166.66,0.00019509,2]
[391641596,1760716239410,-369.70239039,0.00019693,2]
[391641597,1760716239420,-11141.0,0.00019726,2]
[391641598,1760716239429,-400.0,0.00019726,2]
[391641599,1760716239439,-1000.0,0.00019802,2]
[391641600,1760716239448,-229.75082,0.0001985,2]
[391641601,1760716239458,-5512.0,0.000199,3]
[391641602,1760716239467,-8300.0,0.0002,4]
[391641603,1760716239477,-876.23,0.00020038,2]
[391641604,1760716239486,-390.24,0.00020187,2]
[391641605,1760716239496,-269.07195766,0.00020251,2]
[391641606,1760716239505,-600.0,0.00020274,2]
[391641607,1760716239515,-159.18325225,0.00020324,2]
[391641608,1760716239524,-5512.0,0.000205,5]
[391641609,1760716239534,-13826.86936243,0.00020561,2]
[391641611,1760716239544,-876.23,0.00020611,2]
[391641612,1760716239555,-1224.27,0.00020754,2]
[391641613,1760716239566,-800.0,0.00020822,2]
[391641614,1760716239576,-662.02,0.00021026,2]
[391641615,1760716239586,-876.23,0.00021183,2]
[391641616,1760716239596,-668.51,0.0002125,2]
[391641617,1760716239606,-1000.0,0.0002137,2]
[391641618,1760716239616,-302.11,0.00021414,2]
[391641619,1760716239629,-496.57,0.0002142,30]
[391641620,1760716239639,-481.7,0.000216,2]
[391641621,1760716239648,-13826.86936243,0.00021697,2]
[391641622,1760716239659,-233.88219816,0.00021713,2]
[391641623,1760716239669,-876.23,0.00021756,2]
[391641625,1760716239679,-153.733574,0.00021785,2]
[391641626,1760716239689,-1836.796906,0.00021785,2]
[391641627,1760716239698,-151.107744,0.00021785,2]
[391641629,1760716239711,-2227.955231,0.00021785,2]
[391641630,1760716239720,-2000.0,0.000219,2]
[391641631,1760716239729,-10000.0,0.00021917,2]
[391641632,1760716239739,-691.92,0.00021917,2]
[391641633,1760716239748,-691.92,0.00021917,2]
[391641634,1760716239758,-691.92,0.00021917,2]
[391641635,1760716239767,-691.92,0.00021917,2]
[391641636,1760716239777,-691.92,0.00021917,2]
[391641637,1760716239787,-691.92,0.00021917,2]
[391641638,1760716239796,-691.92,0.00021917,2]
[391641639,1760716239807,-691.92,0.00021917,2]
[391641640,1760716239816,-261.23436234,0.00021917,2]
[391641641,1760716239825,-900.0,0.00021918,2]
[391641642,1760716239835,-15192.42813762,0.00022,4]
[391641643,1760716239844,-151.107744,0.00022,4]
[391641644,1760716239853,-1836.796906,0.00022,4]
[391641645,1760716239864,-2227.955231,0.00022,4]
[391641646,1760716239873,-1000.0,0.00022278,2]
[391641647,1760716239883,-3408.0,0.00022518,2]
[391641648,1760716239892,-2197.36,0.00022518,2]
[391641649,1760716239902,-1267.0,0.00022518,2]
[391641650,1760716239911,-749.0,0.00022518,2]
[391641651,1760716239920,-572.819,0.00022518,2]
[391641652,1760716239929,-1310.0,0.00022518,2]
[391641653,1760716239939,-605.0,0.00022518,2]
[391641654,1760716239948,-1590.17,0.00022518,2]
[391641655,1760716239957,-1183.0,0.00022518,2]
[391641656,1760716239966,-2546.0,0.00022518,2]
[391641657,1760716239976,-902.0,0.00022518,2]
[391641658,1760716239986,-819.0,0.00022518,2]
[391641659,1760716239996,-3356.0,0.00022518,2]
[391641660,1760716240005,-6436.0,0.00022518,2]
[391641661,1760716240015,-6445.0,0.00022518,2]
[391641662,1760716240024,-560.548,0.00022518,2]
[391641663,1760716240033,-151.107744,0.0002275,4]
[391641664,1760716240043,-1836.796906,0.0002275,4]
[391641665,1760716240055,-2227.955231,0.0002275,4]
[391641666,1760716240065,-13826.86936243,0.00022833,2]
[391641667,1760716240075,-11028.987268,0.00022853,7]
[391641668,1760716240084,-269.07195766,0.00022926,2]
[391641669,1760716240093,-151.0,0.00023,7]
[391641670,1760716240102,-151.0,0.00023,7]
[391641671,1760716240112,-150.29,0.00023203,2]
[391641672,1760716240122,-3375.0,0.00023252,2]
[391641673,1760716240131,-10000.0,0.00023287,5]
[391641674,1760716240140,-151.107744,0.000235,4]
[391641675,1760716240150,-1836.796906,0.000235,4]
[391641676,1760716240159,-2227.955231,0.000235,4]
[391641677,1760716240168,-151.0,0.000235,7]
[391641678,1760716240177,-151.0,0.000235,7]
[391641679,1760716240187,-226.132128,0.000235,7]
[391641680,1760716240196,-151.0,0.000235,7]
[391641681,1760716240206,-151.0,0.000235,7]
[391641682,1760716240216,-226.132128,0.000235,7]
[391641683,1760716240226,-151.0,0.000235,7]
[391641684,1760716240235,-226.132128,0.000235,7]
[391641685,1760716240245,-151.0,0.000235,7]
[391641686,1760716240254,-151.0,0.000235,7]
[391641687,1760716240264,-151.0,0.000235,7]
[391641688,1760716240274,-226.132128,0.000235,7]
[391641689,1760716240283,-151.0,0.000235,7]
[391641690,1760716240292,-151.0,0.000235,7]
[391641691,1760716240301,-151.0,0.000235,7]
[391641692,1760716240311,-217.657307,0.000235,7]
[391641693,1760716240321,-151.0,0.000235,7]
[391641694,1760716240331,-151.0,0.000235,7]
[391641695,1760716240340,-151.0,0.000235,7]
[391641696,1760716240349,-151.0,0.000235,7]
[391641697,1760716240359,-151.0,0.000235,7]
[391641699,1760716240369,-151.0,0.000235,7]
[391641701,1760716240378,-151.0,0.000235,7]
[391641703,1760716240388,-197.521142,0.000235,7]
[391641705,1760716240397,-151.0,0.000235,7]
[391641707,1760716240406,-151.0,0.000235,7]
[391641709,1760716240416,-150.3,0.00023562,2]
[391641711,1760716240426,-668.51,0.00023611,2]
[391641712,1760716240435,-300.0,0.00023685,2]
[391641713,1760716240445,-300.0,0.00023685,2]
[391641714,1760716240454,-407.373776,0.00023685,2]
[391641715,1760716240464,-13422.6,0.00023767,2]
[391641716,1760716240473,-200.0,0.00023767,2]
[391641717,1760716240482,-200.0,0.00023767,2]
[391641718,1760716240491,-1283.63,0.00023767,2]
[391641719,1760716240501,-150.29,0.00023826,2]
[391641720,1760716240511,-195.98,0.00023836,2]
[391641721,1760716240520,-13826.86936243,0.00023969,2]
[391641722,1760716240529,-233.88219816,0.00023988,2]
[391641723,1760716240538,-151.0,0.00024,7]
[391641724,1760716240548,-1000.0,0.00024017,4]
[391641725,1760716240560,-221.68,0.00024087,2]
[391641726,1760716240570,-388.46991561,0.00024205,2]
[391641727,1760716240579,-151.107744,0.0002425,4]
[391641728,1760716240589,-1836.796906,0.0002425,4]
[391641729,1760716240599,-2227.955231,0.0002425,4]
[391641730,1760716240608,-152.0,0.0002429,3]
[391641731,1760716240617,-691.92,0.00024556,2]
[391641732,1760716240627,-55555.0,0.00024557,3]
[391641733,1760716240640,-544.48052652,0.00024557,2]
[391641734,1760716240649,-194.211989,0.00024557,7]
[391641735,1760716240659,-194.211989,0.00024557,7]
[391641736,1760716240668,-194.211989,0.00024557,7]
[391641737,1760716240679,-151.0,0.00024557,7]
[391641738,1760716240689,-1501.968105,0.00024557,7]
[391641739,1760716240697,-194.211989,0.00024557,7]
[391641740,1760716240707,-151.0,0.00024557,7]
[391641741,1760716240716,-151.0,0.00024557,7]
[391641742,1760716240725,-1501.968105,0.00024557,7]
[391641743,1760716240735,-151.0,0.00024557,7]
[391641744,1760716240744,-151.0,0.00024557,7]
[391641745,1760716240754,-1501.968105,0.00024557,7]
[391641746,1760716240763,-151.0,0.00024557,7]
[391641747,1760716240772,-151.0,0.00024557,7]
[391641748,1760716240782,-151.0,0.00024557,7]
[391641749,1760716240792,-1501.968105,0.00024557,7]
[391641750,1760716240802,-435.599658,0.00024557,7]
[391641751,1760716240812,-151.0,0.00024557,7]
[391641752,1760716240821,-435.599658,0.00024557,7]
[391641753,1760716240831,-151.0,0.00024557,7]
[391641754,1760716240840,-151.0,0.00024557,7]
[391641755,1760716240850,-151.0,0.00024557,7]
[391641756,1760716240860,-421.973986,0.00024557,7]
[391641757,1760716240869,-435.599658,0.00024557,7]
[391641758,1760716240878,-160.347455,0.00024557,7]
[391641759,1760716240888,-151.0,0.00024557,7]
[391641760,1760716240897,-151.0,0.00024557,7]
[391641761,1760716240907,-151.0,0.00024557,7]
[391641762,1760716240917,-421.973986,0.00024557,7]
[391641763,1760716240926,-435.599658,0.00024557,7]
[391641764,1760716240936,-421.973986,0.00024557,7]
[391641765,1760716240945,-760.030735,0.00024557,7]
[391641766,1760716240955,-421.973986,0.00024557,7]
[391641767,1760716240965,-760.030735,0.00024557,7]
[391641768,1760716240974,-760.030735,0.00024557,7]
[391641769,1760716240983,-760.030735,0.00024557,7]
[391641770,1760716240993,-151.0,0.00024557,7]
[391641771,1760716241002,-151.0,0.00024557,7]
[391641772,1760716241013,-151.0,0.00024557,7]
[391641773,1760716241022,-151.0,0.00024557,7]
[391641774,1760716241031,-151.0,0.00024557,7]
[391641775,1760716241041,-151.0,0.00024557,7]
[391641776,1760716241052,-151.0,0.00024557,7]